bitfinex-derivatives/quotes_ETHF0:USTF0_20250726
["timestamp","ask_amount","ask_price","bid_price","bid_amount"]
[1753540184280,9.3325,3732.2,3732.1,0.53564]
[1753540185280,9.3325,3732.2,3731.8,1.5664]
[1753540185281,5.7806,3732.2,3731.8,1.5664]
[1753540185477,6.1247,3731.6,3731.5,2.97844]
[1753540185872,6.1247,3731.6,3731.5,3.57114]
[1753540186074,6.1247,3731.6,3731.5,4.53124]
[1753540186578,2.8459,3731.8,3731.7,6.70251]
[1753540187377,3.8999,3731.8,3731.7,6.70251]
[1753540187579,5.2588,3731.8,3731.7,6.70251]
[1753540188480,5.2588,3731.8,3731.7,21.80751]
[1753540191081,3.8999,3731.8,3731.7,21.80751]
[1753540191686,5.2533,3731.8,3731.7,21.80751]
[1753540193086,6.1192,3731.8,3731.7,1.41201]
[1753540193289,6.1192,3731.8,3731.7,0.53571]
[1753540193491,6.1192,3731.8,3731.7,2.00471]
[1753540193791,6.1192,3731.8,3731.7,4.53121]
[1753540195589,2.193,3731.7,3731.4,0.8763]
[1753540195793,2.5728,3731.5,3731.4,1.41206]
[1753540195984,2.5728,3731.3,3731.2,0.8763]
[1753540196187,9.327,3731.3,3731.2,1.41209]
[1753540196788,9.327,3731.3,3731.2,4.53129]
[1753540197390,9.327,3731.3,3731.2,5.41219]
[1753540197590,9.327,3731.3,3731.2,6.72119]
[1753540198591,8.4611,3731.3,3731.2,6.72119]
[1753540199192,4.0931,3731.3,3731.2,6.72119]
[1753540200093,3.2078,3731.3,3731.2,6.72119]
[1753540200401,5.2297,3731.6,3731.5,6.77504]
[1753540200890,3.2078,3732.0,3731.9,0.6097]
[1753540201095,8.4375,3732.0,3731.9,6.77499]
[1753540202095,2.5084,3731.7,3731.2,1.5465]
[1753540202398,6.1016,3731.7,3731.6,4.55863]
[1753540202600,3.875,3731.7,3731.6,6.77503]
[1753540202902,5.2297,3731.7,3731.6,6.77503]
[1753540203399,6.1016,3731.7,3731.6,5.46603]
[1753540204400,6.1016,3731.7,3731.6,4.9303]
[1753540204594,6.1016,3731.7,3731.6,4.55863]
[1753540205398,5.2297,3731.7,3731.6,6.77503]
[1753540205701,2.8788,3731.7,3731.6,6.77503]
[1753540206098,4.0921,3732.0,3731.9,6.77498]
[1753540206497,3.2078,3732.0,3731.9,6.77498]
[1753540206699,0.018,3732.3,3732.2,2.4856]
[1753540206891,0.9023,3732.3,3732.2,6.77494]
[1753540207093,2.2689,3732.3,3732.2,6.77494]
[1753540207494,0.018,3732.3,3732.2,6.77494]
[1753540207900,2.8968,3732.3,3732.2,6.77494]
[1753540208292,0.9023,3732.3,3732.2,6.77494]
[1753540208800,1.5302,3732.3,3732.2,6.77494]
[1753540209001,2.8968,3732.3,3732.2,6.77494]
[1753540209504,3.893,3732.3,3732.2,6.77494]
[1753540209703,5.2477,3732.3,3732.2,6.77494]
[1753540210204,6.1196,3732.3,3732.2,2.04354]
[1753540210504,6.1196,3732.3,3732.2,4.55854]
[1753540211403,6.1196,3732.3,3732.2,6.77494]
[1753540211604,5.2477,3732.3,3732.2,6.77494]
[1753540212006,2.2509,3733.2,3733.1,3.3838]
[1753540212203,3.875,3733.2,3733.1,6.2393]
[1753540212507,6.1016,3733.2,3733.1,5.46581]
[1753540213301,5.2297,3733.2,3733.1,5.46581]
[1753540213699,5.2297,3733.2,3733.1,6.77481]
[1753540213903,3.875,3733.2,3733.1,6.77481]
[1753540214604,3.2078,3733.7,3733.1,6.77481]
[1753540214605,6.1985,3733.7,3733.6,0.53544]
[1753540214809,8.4375,3733.7,3733.6,6.77474]
[1753540215201,7.0828,3733.7,3733.6,6.77474]
[1753540215503,6.0866,3733.7,3733.6,6.77474]
[1753540216111,1.5666,3733.9,3733.8,6.77471]
[1753540216306,2.4509,3733.9,3733.8,6.77471]
[1753540216506,3.0788,3733.9,3733.8,6.77471]
[1753540216805,0.2,3733.9,3733.8,6.77471]
[1753540217007,3.0788,3733.9,3733.8,6.77471]
[1753540217608,4.075,3733.9,3733.8,6.77471]
[1753540218707,5.4297,3733.9,3733.8,6.77471]
[1753540219411,4.075,3733.9,3733.8,6.77471]
[1753540220310,1.0843,3733.9,3733.8,6.77471]
[1753540220612,0.2,3733.9,3733.8,6.77471]
[1753540221816,5.2297,3734.5,3734.4,4.0229]
[1753540222010,6.1016,3734.5,3734.4,0.8982]
[1753540222213,6.1044,3734.3,3733.9,0.8982]
[1753540222507,3.74311,3734.6,3733.7,1.309]
[1753540222508,1.5122,3733.8,3733.7,4.33003]
[1753540223112,6.1044,3733.8,3733.7,2.04333]
[1753540223712,6.1044,3733.8,3733.7,4.55833]
[1753540224113,5.2325,3733.8,3733.7,6.77473]
[1753540225313,3.875,3733.8,3733.7,6.77473]
[1753540225518,5.2325,3733.8,3733.7,6.77473]
[1753540226121,2.8788,3733.8,3733.7,6.77473]
[1753540226919,3.875,3734.1,3734.0,6.77468]
[1753540227112,3.2078,3734.2,3734.1,1.99817]
[1753540227319,3.2078,3734.2,3734.1,4.45967]
[1753540227618,3.2078,3734.2,3734.1,6.79947]
[1753540230020,2.348,3734.4,3734.3,3.07494]
[1753540230318,3.9392,3734.4,3734.3,6.79944]
[1753540230525,5.2953,3734.4,3734.3,6.79944]
[1753540230726,3.9392,3734.4,3734.3,6.79944]
[1753540231823,5.2953,3734.4,3734.3,6.79944]
[1753540232223,3.2078,3734.6,3734.5,3.07491]
[1753540232224,0.9486,3734.6,3734.5,3.07491]
[1753540232423,2.348,3734.6,3734.5,6.79941]
[1753540233421,6.2183,3735.0,3734.9,0.8632]
[1753540233725,6.2183,3734.7,3734.6,1.3985]
[1753540234424,6.2183,3734.7,3734.6,2.8751]
[1753540234624,6.2183,3734.7,3734.6,0.5353]
[1753540235017,2.348,3734.8,3734.7,4.2798]
[1753540235225,2.348,3734.8,3734.7,1.39848]
[1753540235226,6.2183,3734.8,3734.7,1.39848]
[1753540235622,6.2183,3734.8,3734.7,4.49098]
[1753540237823,0.9486,3734.8,3734.7,6.79938]
[1753540238627,4.1564,3735.0,3734.9,1.45896]
[1753540238826,4.1564,3735.0,3734.9,6.79936]
[1753540239025,5.5558,3735.0,3734.9,6.79936]
[1753540239925,4.1564,3735.0,3734.9,6.79936]
[1753540240120,0.9486,3735.0,3734.9,6.79936]
[1753540240431,3.9572,3735.3,3735.2,6.79931]
[1753540240632,5.3133,3735.3,3735.2,6.79931]
[1753540241132,2.366,3735.3,3735.2,6.79931]
[1753540241332,2.9903,3735.3,3735.2,6.79931]
[1753540242226,6.2183,3735.2,3735.1,2.15113]
[1753540242431,6.2183,3735.2,3735.1,4.49093]
[1753540243032,6.2183,3735.1,3735.0,0.53524]
[1753540243535,5.3133,3735.3,3735.2,6.79931]
[1753540244033,6.2363,3735.3,3735.2,4.49091]
[1753540244237,0.9666,3735.3,3735.2,6.79931]
[1753540244533,0.018,3735.3,3735.2,6.79931]
[1753540246136,0.9666,3735.3,3735.2,6.79931]
[1753540246836,2.9903,3735.3,3735.2,6.79931]
[1753540247038,2.9903,3735.3,3735.2,21.09731]
[1753540248245,3.9572,3735.3,3735.2,21.09731]
[1753540248544,3.9572,3735.3,3735.2,6.79931]
[1753540248745,5.3133,3735.3,3735.2,21.08931]
[1753540249845,6.2363,3735.3,3735.2,16.27501]
[1753540250043,6.2363,3735.3,3735.2,0.53521]
[1753540250248,6.2363,3735.3,3735.2,1.39841]
[1753540250547,3.6785,3735.1,3735.0,0.53524]
[1753540250742,6.2183,3735.1,3735.0,0.53524]
[1753540250943,6.2183,3735.1,3735.0,14.251]
[1753540251147,5.2697,3735.0,3734.9,15.64945]
[1753540251447,5.2697,3735.0,3734.9,1.39845]
[1753540251448,9.4261,3735.0,3734.9,1.39845]
[1753540251750,8.5031,3735.0,3734.9,5.41465]
[1753540251952,8.5031,3735.0,3734.9,6.79935]
[1753540252451,9.4261,3735.0,3734.9,18.73596]
[1753540252650,9.4261,3735.0,3734.9,17.25936]
[1753540252953,6.2183,3734.8,3734.7,1.39849]
[1753540253149,6.2183,3734.8,3734.0,4.071]
[1753540253150,3.8959,3734.8,3734.0,4.071]
[1753540253352,6.2183,3734.3,3734.2,4.49105]
[1753540254742,6.2183,3734.3,3734.2,0.8632]
[1753540255541,6.2183,3734.3,3734.2,1.39856]
[1753540256050,6.2183,3734.3,3734.2,1.99816]
[1753540256252,6.2183,3734.3,3734.2,3.47476]
[1753540257043,6.0557,3733.8,3733.7,3.985]
[1753540257244,6.0557,3733.8,3733.7,4.52043]
[1753540257449,6.0557,3733.8,3733.7,5.40693]
[1753540257650,5.1988,3733.8,3733.7,6.71523]
[1753540258349,6.0557,3733.8,3733.7,6.71523]
[1753540258653,6.0557,3733.8,3733.7,1.42793]
[1753540259751,6.0557,3733.8,3733.7,4.53393]
[1753540260055,1.3016,3734.0,3733.9,6.7287]
[1753540260449,2.1817,3734.0,3733.9,6.7287]
[1753540260943,0.8801,3734.0,3733.9,6.7287]
[1753540261656,3.7501,3734.0,3733.9,6.7287]
[1753540261857,2.7678,3734.0,3733.9,6.7287]
[1753540262251,0.8801,3734.0,3733.9,6.7287]
[1753540262757,3.2078,3734.4,3734.3,6.72864]
[1753540264156,3.7939,3735.0,3734.9,0.5895]
[1753540264351,6.69848366,3735.0,3734.9,6.72856]
[1753540264552,5.9756,3735.0,3734.9,6.72856]
[1753540266060,2.1817,3735.0,3734.9,6.72856]
[1753540266756,0.8801,3735.0,3734.9,6.72856]
[1753540267952,0.018,3735.3,3735.2,2.97391]
[1753540268155,0.018,3735.3,3735.2,6.72851]
[1753540271356,2.1997,3735.3,3735.2,6.72851]
[1753540271661,2.1997,3735.3,3735.2,4.53371]
[1753540271662,5.9837,3735.3,3735.2,4.53371]
[1753540271858,5.9837,3735.3,3735.2,0.53521]
[1753540273462,5.9837,3735.3,3735.2,1.42771]
[1753540274056,5.9837,3735.3,3735.0,0.8925]
[1753540274057,1.5684,3735.1,3735.0,0.8925]
[1753540274262,5.1088,3734.7,3734.6,6.7286]
[1753540274462,5.1088,3734.7,3734.6,20.7646]
[1753540274662,3.7501,3734.7,3734.6,20.7646]
[1753540274963,5.6563,3735.0,3734.9,2.97396]
[1753540275163,6.9579,3735.0,3734.9,6.72856]
[1753540275864,8.3166,3735.0,3734.9,6.72856]
[1753540280259,0.018,3735.3,3735.2,6.72852]
[1753540280465,0.018,3735.3,3735.2,20.70652]
[1753540281464,0.018,3735.3,3735.2,21.03938181]
[1753540282560,1.4842,3735.3,3735.2,21.04438181]
[1753540282863,0.018,3735.3,3735.2,21.04438181]
[1753540283060,0.018,3735.3,3735.2,21.04431968]
[1753540283265,5.1268,3735.3,3735.2,5.75301968]
[1753540283464,3.5054,3735.9,3735.8,2.97983]
[1753540283659,3.5054,3735.9,3735.8,7.06122968]
[1753540284069,6.1657,3735.9,3735.8,7.06122968]
[1753540284569,6.1657,3735.9,3735.8,1.76042968]
[1753540284767,6.1657,3735.9,3735.8,0.86792968]
[1753540285566,6.1657,3735.9,3735.8,1.88499968]
[1753540285869,6.1657,3735.9,3735.8,3.31262968]
[1753540286272,6.1657,3735.9,3735.8,4.86642968]
[1753540286769,5.3088,3735.9,3735.8,7.06122968]
[1753540288868,5.3088,3735.9,3735.8,6.72843]
[1753540289070,5.3088,3735.9,3735.8,7.06110062]
[1753540291773,3.9501,3735.9,3735.8,7.06110062]
[1753540291963,3.9501,3735.9,3735.8,7.06126919]
[1753540292171,1.0801,3735.9,3735.8,7.06126919]
[1753540292965,0.9209,3736.5,3736.3,0.53506]
[1753540292966,2.8421,3736.4,3736.3,0.53506]
[1753540293173,6.0865,3736.4,3736.3,5.74669919]
[1753540293970,14.82934,3736.4,3736.3,0.33283919]
[1753540294166,0.53508,3736.2,3735.9,0.53511]
[1753540294370,6.0865,3736.0,3735.9,0.53511]
[1753540294868,6.0865,3736.0,3735.8,0.8856]
[1753540294869,0.9209,3735.9,3735.8,0.8856]
[1753540295171,2.4836,3735.6,3735.5,0.53517]
[1753540295368,2.4836,3735.6,3735.4,0.53518]
[1753540295673,3.4045,3735.5,3735.4,0.53518]
[1753540295869,6.0865,3735.5,3735.4,0.53518]
[1753540296067,6.0865,3735.5,3735.3,2.9229]
[1753540296372,2.4836,3735.5,3735.4,0.53519]
[1753540296974,6.0865,3735.5,3735.4,1.42079]
[1753540298075,6.0865,3735.5,3735.4,3.53019]
[1753540298376,6.0865,3735.5,3735.4,6.71409]
[1753540299172,0.934,3735.5,3735.4,6.71409]
[1753540299373,3.2078,3735.6,3735.5,6.71407]
[1753540300475,2.8421,3735.9,3735.8,3.02623]
[1753540300663,2.8421,3735.9,3735.8,6.71403]
[1753540301074,0.934,3735.9,3735.8,6.71403]
[1753540302670,2.2634,3736.2,3736.1,3.91179]
[1753540302868,2.8421,3736.2,3736.1,6.1789]
[1753540303073,5.1656,3736.2,3736.1,6.1789]
[1753540303975,5.1656,3736.2,3736.1,6.71399]
[1753540304375,6.0865,3736.2,3736.1,4.8788]
[1753540304675,6.0865,3736.2,3736.1,5.41389]
[1753540305374,6.0865,3736.2,3736.1,6.71399]
[1753540307979,5.1656,3736.2,3736.1,6.71399]
[1753540309377,2.4836,3735.8,3735.7,4.8788]
[1753540309576,6.0865,3735.8,3735.7,5.41395]
[1753540309776,6.0865,3735.8,3735.7,6.71405]
[1753540310981,5.1656,3735.8,3735.7,6.71405]
[1753540313785,3.813,3735.8,3735.7,6.71405]
[1753540313985,2.8421,3735.8,3735.7,6.71405]
[1753540314186,0.934,3735.8,3735.7,6.71405]
[1753540314388,2.682,3736.1,3736.0,0.5351]
[1753540314589,5.1656,3736.1,3736.0,6.714]
[1753540314880,3.2078,3736.4,3736.0,0.8856]
[1753540315087,2.8421,3736.7,3736.6,6.71392]
[1753540315280,3.56944689,3736.7,3736.6,6.71392]
[1753540315486,4.54034689,3736.7,3736.6,6.71392]
[1753540315786,0.72734689,3736.7,3736.6,6.71392]
[1753540316383,2.99074689,3736.7,3736.6,6.71392]
[1753540316583,2.2634,3736.7,3736.6,6.71392]
[1753540316789,5.4712,3736.9,3736.8,6.71389]
[1753540317089,6.77738655,3736.9,3736.8,6.71389]
[1753540317388,9.10258655,3736.9,3736.8,6.71389]
[1753540317590,8.3751,3736.9,3736.8,6.71389]
[1753540317790,7.0208,3736.9,3736.8,6.1789]
[1753540318090,7.0208,3736.9,3736.8,6.71389]
[1753540318485,3.813,3736.9,3736.8,6.71389]
[1753540318890,2.2634,3736.9,3736.8,6.71389]
[1753540319286,2.2728,3737.1,3737.0,1.13426]
[1753540319596,5.1451,3737.1,3737.0,6.104]
[1753540320199,5.1451,3737.1,3737.0,6.63896]
[1753540320499,6.0506,3737.1,3737.0,2.3302]
[1753540320699,6.77759505,3737.1,3737.0,2.3302]
[1753540320898,6.0506,3737.1,3737.0,0.8834]
[1753540321295,6.58554,3737.1,3737.0,0.8834]
[1753540321491,6.0506,3737.1,3737.0,0.8834]
[1753540321693,6.58554,3737.1,3736.9,0.53497]
[1753540322002,2.5085,3736.6,3736.5,1.5959]
[1753540322298,3.7908,3736.6,3736.5,3.57773]
[1753540322500,5.1436,3736.6,3736.5,4.45333]
[1753540322698,5.1436,3736.6,3736.5,6.63903]
[1753540323900,5.1436,3736.6,3736.5,6.97311497]
[1753540324405,5.1436,3736.6,3736.5,6.43808497]
[1753540324703,9.79192,3736.6,3736.5,2.66428497]
[1753540324998,9.2569,3736.6,3736.5,4.26018497]
[1753540325203,6.0491,3736.6,3736.5,4.26018497]
[1753540325403,6.0491,3736.6,3736.5,6.43808497]
[1753540325601,5.1436,3736.6,3736.5,6.43808497]
[1753540326404,6.58412,3736.6,3736.5,1.21748497]
[1753540326997,6.58412,3736.6,3736.5,3.26358497]
[1753540327200,3.34332,3736.6,3736.5,5.55468497]
[1753540327401,5.67862,3736.6,3736.5,5.55468497]
[1753540327601,6.58412,3736.6,3736.5,4.25238497]
[1753540327802,6.58412,3736.6,3736.5,5.13578497]
[1753540327998,6.58412,3736.6,3736.5,6.43808497]
[1753540328197,6.58412,3736.6,3736.5,5.13578497]
[1753540328907,6.58412,3736.6,3736.5,6.43808497]
[1753540329308,5.1436,3736.6,3736.5,6.43808497]
[1753540330109,5.67862,3736.6,3736.5,6.43808497]
[1753540330907,5.1436,3736.6,3736.5,6.43808497]
[1753540331310,5.67862,3736.6,3736.5,6.43808497]
[1753540332111,0.9185,3736.6,3736.5,6.97314206]
[1753540332409,2.2008,3736.6,3736.5,6.97314206]
[1753540332908,3.34332,3736.6,3736.5,6.43811206]
[1753540333107,5.1436,3736.6,3736.5,6.43811206]
[1753540334009,5.1436,3736.6,3736.5,6.97314206]
[1753540334811,5.67862,3736.6,3736.5,6.43811206]
[1753540335206,6.58412,3736.6,3736.5,1.21751206]
[1753540335413,6.58412,3736.6,3736.5,2.66431206]
[1753540335708,6.58412,3736.6,3736.5,4.26021206]
[1753540335906,6.58412,3736.6,3736.5,6.43811206]
[1753540336307,6.58412,3736.6,3736.5,5.13581206]
[1753540336909,6.58412,3736.6,3736.5,6.43811206]
[1753540337504,2.42481,3736.7,3736.6,6.104]
[1753540337712,6.58411,3736.7,3736.6,1.21751206]
[1753540337911,6.58411,3736.7,3736.6,1.217683]
[1753540338213,6.58411,3736.7,3736.6,2.664483]
[1753540338409,6.58411,3736.7,3736.6,3.263783]
[1753540339211,6.58411,3736.7,3736.6,4.260383]
[1753540340615,6.58411,3736.7,3736.6,6.438283]
[1753540341407,12.31125876,3736.7,3736.6,0.334283]
[1753540341711,6.58416,3736.3,3736.2,0.8834]
[1753540341914,9.79196,3736.3,3736.2,0.8834]
[1753540342114,5.6787,3736.0,3735.9,6.104]
[1753540343119,6.5842,3736.0,3735.9,0.8834]
[1753540344715,6.58425,3735.7,3735.6,5.2284]
[1753540345519,6.58425,3735.7,3735.6,6.104]
[1753540346120,5.67875,3735.7,3735.6,6.104]
[1753540349523,6.58705,3735.7,3735.6,3.8051]
[1753540349716,6.58705,3735.7,3735.6,4.8921]
[1753540349925,6.58705,3735.7,3735.6,6.1796]
[1753540350623,6.58705,3735.7,3735.6,3.0047]
[1753540350819,6.58705,3735.7,3735.6,0.8834]
[1753540351615,3.5434,3735.7,3735.0,0.8642]
[1753540351822,6.63803,3735.1,3735.0,3.9988]
[1753540352021,6.63809,3734.7,3734.6,0.8642]
[1753540352333,9.84589,3734.7,3734.6,0.8642]
[1753540353130,9.84589,3734.7,3734.6,2.3862]
[1753540353325,4.2933,3734.6,3734.5,1.8878]
[1753540353531,5.7298,3734.6,3734.5,6.1623]
[1753540353930,6.6381,3734.6,3734.5,6.1623]
[1753540354227,5.7298,3734.6,3734.5,6.1623]
[1753540355526,5.1945,3734.6,3734.5,6.1623]
[1753540355721,3.7431,3734.7,3734.5,6.69762]
[1753540355926,2.77394,3735.1,3735.0,2.4886]
[1753540356126,2.77394,3735.1,3735.0,6.1623]
[1753540356527,3.2078,3735.2,3735.0,6.69755]
[1753540356724,3.2078,3735.6,3735.4,1.2875]
[1753540356929,3.2078,3735.6,3735.5,6.69748]
[1753540357131,3.2078,3735.6,3735.5,6.1623]
[1753540358233,4.64416,3735.6,3735.5,6.1623]
[1753540358429,9.84576,3735.6,3735.5,0.8642]
[1753540358728,6.638,3735.3,3735.2,2.987]
[1753540359028,5.1945,3734.9,3734.8,5.2981]
[1753540359228,3.8388,3734.9,3734.8,5.2981]
[1753540359435,3.8388,3734.9,3734.8,6.1623]
[1753540360336,4.37406,3734.9,3734.8,6.1623]
[1753540360539,5.72976,3734.9,3734.8,6.1623]
[1753540360931,6.63806,3734.9,3734.8,4.8748]
[1753540361631,6.63806,3734.9,3734.8,3.9988]
[1753540361833,6.63806,3734.9,3734.8,1.465]
[1753540362340,5.72976,3734.9,3734.8,6.1623]
[1753540362629,1.338,3735.4,3734.9,3.6737]
[1753540362630,1.3375,3735.3,3734.9,3.6737]
[1753540362830,2.7739,3735.3,3735.2,6.1623]
[1753540363939,2.8409,3735.3,3735.2,6.1623]
[1753540364235,3.3761,3735.3,3735.2,6.1623]
[1753540364636,2.8409,3735.3,3735.2,6.1623]
[1753540364826,1.4364,3735.3,3735.2,6.1623]
[1753540365738,2.7739,3735.3,3735.2,6.1623]
[1753540366633,2.2387,3735.3,3735.2,6.1623]
[1753540367032,2.7739,3735.3,3735.2,6.1623]
[1753540367429,3.3761,3735.3,3735.2,6.1623]
[1753540368039,5.7297,3735.3,3735.2,6.1623]
[1753540368239,6.44656408,3735.3,3735.2,6.1623]
[1753540368439,7.35486408,3735.3,3735.2,6.1623]
[1753540369333,6.638,3735.3,3735.2,6.1623]
[1753540370039,5.7297,3735.3,3735.2,6.1623]
[1753540370240,6.4465742,3735.3,3735.2,6.1623]
[1753540371840,5.7297,3735.3,3735.2,6.1623]
[1753540372042,7.35495068,3735.3,3735.2,6.1623]
[1753540373337,6.44665068,3735.3,3735.2,6.1623]
[1753540374142,7.35495068,3735.3,3735.2,6.1623]
[1753540375044,6.638,3735.3,3735.2,6.1623]
[1753540375342,5.7297,3735.3,3735.2,6.1623]
[1753540377034,3.3761,3735.3,3735.2,6.1623]
[1753540377637,6.6066,3735.3,3735.2,3.9988]
[1753540377842,6.6066,3735.3,3735.2,2.3862]
[1753540378238,6.6066,3735.3,3735.2,2.9912]
[1753540378837,6.6066,3735.3,3735.2,3.9524]
[1753540379044,6.6066,3735.3,3735.2,0.8642]
[1753540379244,6.55285,3735.0,3734.9,6.1622]
[1753540380437,5.67535,3735.0,3734.9,6.1622]
[1753540381537,6.55285,3735.0,3734.9,6.1622]
[1753540382238,6.55289,3734.7,3734.6,0.9137]
[1753540382441,6.55293,3734.4,3734.3,6.1622]
[1753540382637,6.55293,3734.4,3734.0,2.7704]
[1753540382841,6.55298,3734.1,3734.0,6.1622]
[1753540384239,5.67548,3734.1,3734.0,6.1622]
[1753540384844,6.553,3733.9,3733.8,1.11188686]
[1753540385240,6.553,3733.9,3733.8,3.17928686]
[1753540385443,6.553,3733.9,3733.8,4.14048686]
[1753540386238,6.553,3733.9,3733.8,5.44848686]
[1753540386433,6.553,3733.9,3733.8,6.36038686]
[1753540387444,1.3249,3734.2,3733.9,3.6841]
[1753540387746,2.71837,3734.2,3734.1,6.1622]
[1753540388440,3.30607,3734.2,3734.1,6.1622]
[1753540388647,5.67547,3734.2,3734.1,6.1622]
[1753540389345,6.55297,3734.2,3734.1,6.1622]
[1753540389747,5.67547,3734.2,3734.1,6.1622]
[1753540393051,8.88327,3734.2,3734.1,6.1622]
[1753540394650,9.76077,3734.2,3734.1,6.1622]
[1753540397550,9.76077,3734.2,3734.1,1.5187]
[1753540397748,6.5523,3733.9,3733.8,3.17928686]
[1753540398053,4.3204,3733.9,3733.8,6.36038686]
[1753540398951,3.785,3733.9,3733.8,6.89580686]
[1753540399353,4.3204,3733.9,3733.8,6.89580686]
[1753540399554,3.785,3733.9,3733.8,6.89580686]
[1753540399945,5.6748,3733.9,3733.8,6.36038686]
[1753540400750,1.3249,3733.9,3733.8,6.89580686]
[1753540400953,5.4397,3734.2,3734.0,0.53538]
[1753540400954,1.88977,3734.2,3734.0,0.53538]
[1753540401154,0.53537,3734.2,3734.1,6.1622]
[1753540401753,2.71837,3734.2,3734.1,6.1622]
[1753540402055,3.30607,3734.2,3734.1,6.1622]
[1753540402353,5.67477,3734.2,3734.1,6.1622]
[1753540403554,6.55227,3734.2,3734.1,6.1622]
[1753540403756,3.785,3733.9,3733.8,6.89579686]
[1753540404454,5.1394,3733.9,3733.8,6.89579686]
[1753540405155,5.6748,3733.9,3733.8,6.36038686]
[1753540405654,6.5523,3733.9,3733.8,4.14048686]
[1753540405846,6.5523,3733.9,3733.8,0.19818686]
[1753540406454,6.0169,3733.9,3733.8,5.05238686]
[1753540406649,0.8581,3733.9,3733.8,6.89580686]
[1753540406854,4.66046,3734.2,3734.1,6.1622]
[1753540407054,3.30606,3734.2,3734.1,6.1622]
[1753540407559,5.70486,3734.2,3734.1,6.1622]
[1753540408152,4.34946,3734.2,3734.1,6.1622]
[1753540408460,5.70486,3734.2,3734.1,6.1622]
[1753540408753,9.83526,3734.2,3734.1,0.9137]
[1753540408952,6.7054,3733.9,3733.8,5.52608686]
[1753540409152,6.7054,3733.9,3733.8,4.20118686]
[1753540411053,6.7054,3733.9,3733.8,6.47248686]
[1753540411458,5.7828,3733.9,3733.8,6.47248686]
[1753540411756,6.7054,3733.9,3733.8,6.47248686]
[1753540411957,5.7828,3733.9,3733.8,6.47248686]
[1753540413158,6.7054,3733.9,3733.8,6.47248686]
[1753540413656,5.7828,3733.9,3733.8,6.47248686]
[1753540414360,6.50685023,3733.9,3733.8,6.47248686]
[1753540415361,0.72405023,3733.9,3733.8,7.00789686]
[1753540415563,8.17607,3734.1,3734.0,2.4838]
[1753540415758,10.54345545,3734.1,3734.0,6.2743]
[1753540416061,11.89885545,3734.1,3734.0,6.2743]
[1753540416462,0.72408545,3734.1,3734.0,10.01749]
[1753540416663,6.59167,3734.8,3734.7,2.4838]
[1753540416962,9.71453708,3734.8,3734.7,6.2743]
[1753540417658,9.71453708,3734.8,3734.7,6.61688167]
[1753540418663,0.72406708,3734.8,3734.7,7.15216167]
[1753540418864,0.72406708,3734.8,3734.7,6.61688167]
[1753540419064,0.72406708,3734.8,3734.7,7.15216167]
[1753540421379,0.72406708,3734.8,3734.7,6.61688167]
[1753540422676,1.25933708,3734.8,3734.7,6.61990472]
[1753540422880,7.42933708,3734.8,3734.7,4.34860472]
[1753540423577,6.50673708,3734.8,3734.7,6.61990472]
[1753540426383,5.78267,3734.8,3734.7,6.61990472]
[1753540427077,0.8718,3734.8,3734.7,6.61990472]
[1753540427283,0.53526,3734.9,3734.8,6.2743]
[1753540427582,0.53526,3734.9,3734.8,6.61990472]
[1753540427973,0.53523,3735.1,3735.0,0.9435]
[1753540428178,0.53523,3735.1,3735.0,6.61990472]
[1753540428375,3.2078,3735.4,3735.0,2.82940472]
[1753540428575,4.61478,3735.4,3735.3,6.2743]
[1753540428773,1.40698,3735.4,3735.3,6.61990472]
[1753540429373,0.53518,3735.4,3735.3,6.61990472]
[1753540431879,1.40698,3735.4,3735.3,6.61990472]
[1753540432081,0.53518,3735.4,3735.3,6.61990472]
[1753540432775,1.3769,3735.6,3735.4,5.3279]
[1753540432776,0.53518,3735.5,3735.4,5.3279]
[1753540433083,0.53518,3735.5,3735.4,6.61990472]
[1753540434281,0.53518,3735.5,3735.4,6.61915892]
[1753540437490,3.34296,3735.6,3735.5,6.2488]
[1753540437793,3.34296,3735.6,3735.5,6.59365892]
[1753540437991,5.74306,3735.6,3735.5,6.59365892]
[1753540438688,0.8883,3735.6,3735.5,7.12882892]
[1753540438885,5.94852,3735.9,3735.8,2.4693]
[1753540439081,6.13506023,3735.9,3735.8,6.59365892]
[1753540439290,4.81776023,3735.9,3735.8,7.12878892]
[1753540439588,6.73726023,3735.9,3735.8,7.12878892]
[1753540439794,0.72166023,3735.9,3735.8,7.12878892]
[1753540439992,0.8883,3736.1,3736.0,0.5351]
[1753540440291,2.92724061,3736.1,3736.0,3.34925892]
[1753540440693,2.92724061,3736.1,3736.0,7.12875892]
[1753540440888,6.46462061,3736.1,3736.0,6.59365892]
[1753540441987,5.74298,3736.1,3736.0,6.59345057]
[1753540443090,6.1301,3736.1,3736.0,7.12855057]
[1753540443292,5.74298,3736.1,3736.0,6.59345057]
[1753540443491,5.74298,3736.1,3736.0,7.12855057]
[1753540443492,3.8531,3736.1,3736.0,7.12855057]
[1753540443892,2.2056,3736.1,3736.0,7.12855057]
[1753540444086,5.4848,3736.4,3736.3,6.78385]
[1753540444087,4.0961,3736.4,3736.3,6.78385]
[1753540444283,4.0961,3736.4,3736.3,7.12850057]
[1753540444492,5.4134,3736.4,3736.3,7.12850057]
[1753540444988,5.4134,3736.4,3736.3,7.12862942]
[1753540445191,6.55064,3736.4,3736.3,6.59357942]
[1753540445396,6.0156,3736.4,3736.3,6.59357942]
[1753540445593,8.95074,3736.4,3736.3,6.59357942]
[1753540446096,8.4157,3736.4,3736.3,6.59357942]
[1753540446400,8.4157,3736.4,3736.3,7.12862942]